bitfinex/quotes_ETHUSD_20220202
["timestamp","ask_amount","ask_price","bid_price","bid_amount"]
[1643799468396,0.95050647,2767.2,2766.7,0.74742248]
[1643799468795,0.53219407,2767.3,2766.7,0.74742248]
[1643799469000,0.35149407,2767.3,2766.7,0.74742248]
[1643799469795,0.35149407,2767.3,2766.8,0.90355]
[1643799470000,0.81725948,2767.2,2766.8,0.90355]
[1643799472144,0.81725948,2767.2,2766.9,1.09043762]
[1643799472145,0.43516196,2767.1,2766.9,1.09043762]
[1643799476497,0.68845293,2767.4,2766.9,1.09043762]
[1643799476498,0.43516196,2767.0,2766.9,1.09043762]
[1643799476699,0.43516196,2767.2,2766.9,1.09043762]
[1643799477302,0.43516196,2767.2,2767.0,1.09043762]
[1643799477505,0.43516196,2767.2,2766.7,1.09043762]
[1643799477758,0.43516196,2767.2,2766.8,1.09043762]
[1643799477952,0.43516196,2767.2,2766.9,1.09043762]
[1643799478151,0.83466527,2767.2,2767.0,1.09043762]
[1643799478351,0.43516196,2767.1,2766.6,0.77205402]
[1643799478553,0.43516196,2767.1,2766.7,1.09073811]
[1643799480554,0.43516196,2767.1,2766.8,1.09073811]
[1643799480754,0.43516196,2767.1,2766.9,1.09073811]
[1643799480755,0.61586196,2767.1,2766.9,1.09073811]
[1643799480957,0.43516196,2767.0,2766.4,2.18244167]
[1643799481154,0.43516196,2767.0,2766.5,1.09062402]
[1643799481589,0.43516196,2767.0,2766.6,0.00174167]
[1643799482999,0.66897869,2766.7,2766.6,0.00174167]
[1643799483194,0.66897869,2766.7,2766.5,1.09062402]
[1643799483394,0.43753131,2766.6,2766.5,1.09062402]
[1643799483594,0.43762317,2766.6,2766.5,1.09062402]
[1643799483795,0.43762299,2766.6,2766.5,1.09062402]
[1643799483996,0.43761866,2767.0,2766.5,1.09062402]
[1643799484197,0.43761427,2766.9,2766.5,1.09062402]
[1643799484398,0.43761427,2766.8,2766.6,0.00174552]
[1643799484595,0.1807,2767.1,2766.6,0.00174552]
[1643799484796,0.79124566,2766.9,2766.6,0.00174552]
[1643799484997,0.4374853,2766.8,2766.6,0.00174552]
[1643799485242,0.79124566,2766.9,2766.6,0.00174552]
[1643799485647,0.43750474,2766.8,2766.6,0.00174552]
[1643799486043,0.79124566,2766.9,2766.6,0.00174552]
[1643799486244,0.43827999,2766.8,2766.6,0.00174552]
[1643799487346,0.33213077,2766.7,2766.6,0.00174552]
[1643799487546,0.33213077,2766.7,2766.5,1.09062402]
[1643799487750,0.43823202,2766.6,2766.5,1.09062402]
[1643799487949,0.33213077,2766.7,2766.5,1.09062402]
[1643799488155,0.43823252,2766.6,2766.5,1.09062402]
[1643799488350,0.79124566,2766.9,2766.4,1.09236954]
[1643799488550,0.43827867,2766.6,2766.5,1.09062402]
[1643799488751,0.43831881,2766.8,2766.4,1.09062402]
[1643799488995,0.43860223,2766.7,2766.5,1.09062402]
[1643799489198,0.79124566,2766.9,2766.6,1.09062402]
[1643799489397,0.78642838,2766.8,2766.7,1.09062402]
[1643799489596,0.78642838,2766.8,2766.4,1.09236954]
[1643799489797,0.43843628,2766.7,2766.4,1.09236954]
[1643799489999,0.34782928,2766.8,2766.4,1.09236954]
[1643799490197,0.43843506,2766.7,2766.4,1.09236954]
[1643799490396,0.34782928,2766.8,2766.4,1.09236954]
[1643799490997,0.43845173,2766.7,2766.4,1.09236954]
[1643799491196,0.34782928,2766.8,2766.4,1.09236954]
[1643799491397,0.43858811,2766.7,2766.4,1.09236954]
[1643799491597,0.34782928,2766.8,2766.4,1.09236954]
[1643799491598,0.43863925,2766.6,2766.4,1.09236954]
[1643799491796,0.34782928,2766.8,2766.4,1.09236954]
[1643799492196,0.34782928,2766.8,2766.5,1.09062402]
[1643799492398,0.34782928,2766.8,2766.4,0.00174552]
[1643799492399,0.34782928,2766.8,2766.6,1.09062402]
[1643799492637,0.34782928,2766.8,2766.7,1.09062402]
[1643799492842,0.78652099,2766.8,2766.4,1.09236954]
[1643799493044,0.34782928,2766.8,2766.5,1.09062402]
[1643799493346,0.34782928,2766.8,2766.6,1.09062402]
[1643799493541,0.4574615,2766.7,2766.4,0.00174552]
[1643799493742,0.45746288,2766.6,2766.4,1.07398885]
[1643799493942,0.4574629,2766.7,2766.5,1.07224333]
[1643799494142,0.34782928,2766.8,2766.6,1.07224333]
[1643799494341,0.45745984,2766.7,2766.4,1.07398885]
[1643799494541,0.45745645,2766.6,2766.5,1.07224333]
[1643799494741,0.45822053,2766.6,2766.5,1.07224333]
[1643799494942,0.45765267,2766.6,2766.4,0.00174552]
[1643799495142,0.34782928,2766.8,2766.3,1.75609549]
[1643799495347,1.14619748,2766.7,2766.2,0.00174552]
[1643799495546,1.14619748,2766.7,2766.0,0.1807]
[1643799495547,0.68845293,2766.4,2766.0,0.1807]
[1643799495744,3.08261956,2766.6,2766.2,0.00174573]
[1643799495745,2.76283309,2766.3,2766.2,0.00174573]
[1643799495949,0.68845293,2766.3,2766.2,0.00174573]
[1643799496143,0.68845293,2766.3,2765.9,0.00174573]
[1643799496391,2.1706131,2766.5,2765.9,0.00174573]
[1643799496392,1.31287501,2766.0,2765.9,0.00174573]
[1643799496795,1.31287501,2766.0,2765.5,0.18244573]
[1643799497292,1.31287501,2766.0,2765.6,0.00174573]
[1643799497492,1.31287501,2766.0,2765.7,0.1807]
[1643799498098,1.31287501,2766.0,2765.4,0.871002]
[1643799498603,1.31287501,2766.0,2765.4,0.18244573]
[1643799500242,1.31287501,2766.0,2765.4,1.08647573]
[1643799512392,1.31287501,2766.0,2765.4,0.90577573]
[1643799513795,1.31287501,2766.0,2765.4,0.00174573]
[1643799515442,0.5498653,2765.9,2765.4,0.00174573]
[1643799515842,0.5498653,2765.9,2765.4,0.97463477]
[1643799516846,0.5498653,2765.9,2765.4,1.87865477]
[1643799517049,0.5498653,2765.9,2765.5,0.97288904]
[1643799519494,0.54882577,2765.9,2765.5,0.97288904]
[1643799520195,1.31287501,2766.0,2765.5,0.97288904]
[1643799520392,1.31287501,2766.0,2765.6,0.00174573]
[1643799524047,0.01,2765.9,2765.6,0.00174573]
[1643799524251,1.31287501,2766.0,2765.6,0.00174573]
[1643799532854,1.31287501,2766.0,2765.4,0.18244573]
[1643799533653,0.3169854,2765.5,2765.4,0.18244573]
[1643799533893,0.89199318,2766.0,2765.4,0.1807]
[1643799534491,0.89199318,2766.0,2765.5,0.00174573]
[1643799535097,0.33174359,2765.6,2765.5,0.00174573]
[1643799535296,0.33174359,2765.6,2765.4,0.1807]
[1643799535494,0.89199318,2766.0,2765.4,0.1807]
[1643799535892,0.89199318,2766.0,2765.5,0.00174573]
[1643799537294,0.38297877,2765.7,2765.5,0.00174573]
[1643799537853,0.38297877,2765.7,2765.5,0.90580573]
[1643799538046,0.38297877,2765.7,2765.5,0.90406]
[1643799538449,0.38297877,2765.7,2765.5,1.59261627]
[1643799539349,0.38297877,2765.7,2765.6,0.68855627]
[1643799539548,0.38297877,2765.7,2765.6,1.64837221]
[1643799539749,0.9551856,2765.7,2765.6,1.64837221]
[1643799543802,0.57220683,2765.7,2765.6,1.64837221]
[1643799544304,0.57220683,2765.7,2765.6,1.94837221]
[1643799544703,0.57220683,2766.2,2765.6,1.94837221]
[1643799544904,0.92745135,2766.1,2765.7,0.95981594]
[1643799545147,0.57220683,2766.0,2765.7,1.65011155]
[1643799545347,1.37418601,2766.0,2765.7,1.65011155]
[1643799545553,0.57220683,2765.9,2765.8,0.95981594]
[1643799553848,0.80197918,2766.0,2765.8,0.95981594]
[1643799554049,0.57094475,2765.9,2765.8,0.95981594]
[1643799554251,0.86915293,2766.3,2765.8,0.95981594]
[1643799554453,0.57094738,2766.2,2765.9,0.3]
[1643799554650,0.57093138,2766.1,2765.9,2.55224221]
[1643799554852,0.57092201,2766.0,2765.9,1.59242627]
[1643799555050,0.68845293,2766.6,2765.9,0.96065644]
[1643799555051,3.25926171,2766.6,2765.9,0.96065644]
[1643799555250,1.47807227,2766.5,2766.0,0.96065644]
[1643799555449,0.57080878,2766.4,2766.0,0.96065644]
[1643799556896,0.57080878,2766.4,2766.0,1.86454644]
[1643799557096,0.57080878,2766.4,2766.1,0.96065644]
[1643799557900,0.57080878,2766.4,2766.1,1.86451644]
[1643799558202,0.57080878,2766.4,2766.2,0.9597508]
[1643799558407,0.57080878,2766.4,2765.9,0.1807]
[1643799559204,1.9112529,2766.7,2765.9,2.07316627]
[1643799559605,1.9112529,2766.7,2765.9,1.38461]
[1643799559905,0.68845293,2766.6,2765.9,1.08461]
[1643799560354,0.79299182,2766.3,2765.9,1.08461]
[1643799561956,2.29451102,2766.7,2765.9,1.08461]
[1643799562962,0.91468393,2766.4,2765.9,1.08461]
[1643799563161,0.91468393,2766.4,2765.9,0.90391]
[1643799563362,2.79941446,2766.4,2765.9,0.90391]
[1643799563568,0.68845293,2766.3,2765.8,0.1807]
[1643799563761,0.40931093,2766.0,2765.8,0.1807]
[1643799564406,2.61768016,2766.2,2765.8,0.1807]
[1643799564805,0.68845293,2766.2,2765.8,0.1807]
[1643799565104,0.90408,2766.1,2765.8,0.1807]
[1643799565507,0.40207214,2766.0,2765.8,0.1807]
[1643799566912,0.35966066,2765.7,2765.5,3.2526]
[1643799567112,1.30617214,2766.0,2765.4,5.61266]
[1643799567311,1.30617214,2766.0,2765.4,1.80806]
[1643799567511,0.40207214,2766.0,2765.4,1.59257627]
[1643799567956,0.40207214,2766.0,2765.4,0.90402]
[1643799569354,0.40207214,2766.0,2765.4,1.59257627]
[1643799569753,1.30614214,2766.0,2765.4,0.90402]
[1643799569953,1.30614214,2766.0,2765.4,1.59257627]
[1643799570154,0.40207214,2766.0,2765.4,1.59257627]
[1643799570754,0.40207214,2766.0,2765.4,0.90402]
[1643799570953,0.40207214,2766.0,2765.4,1.59257627]
[1643799571402,0.40207214,2766.0,2765.4,0.90402]
[1643799571796,0.40207214,2766.0,2765.4,1.59257627]
[1643799575654,0.40207214,2766.0,2765.4,2.49660627]
[1643799575854,0.40207214,2766.0,2765.5,0.90403]
[1643799578057,2.27757933,2766.0,2765.5,0.90403]
[1643799578256,0.54747445,2765.9,2765.6,0.98204229]
[1643799580703,0.54747445,2765.9,2765.7,0.1807]
[1643799580918,0.54747445,2765.9,2765.8,0.98204229]
[1643799581105,0.54747445,2765.9,2765.8,1.16274229]
[1643799587196,0.54747445,2765.9,2765.8,1.16140432]
[1643799587399,0.54747445,2765.9,2765.8,1.16140443]
[1643799587597,0.54747445,2765.9,2765.8,0.1807]
[1643799587803,0.54747445,2765.9,2765.8,1.16109884]
[1643799588002,0.54747445,2765.9,2765.8,0.1807]
[1643799588203,0.54747445,2765.9,2765.8,0.98038842]
[1643799588402,0.54747445,2765.9,2765.8,0.1807]
[1643799588603,0.54747445,2765.9,2765.8,0.98020004]
[1643799588805,0.54747445,2765.9,2765.8,0.1807]
[1643799589003,0.54747445,2765.9,2765.7,1.16089278]
[1643799589203,0.54747445,2765.9,2765.8,0.98019366]
[1643799589410,0.54747445,2765.9,2765.8,1.16089303]
[1643799589605,0.54747445,2765.9,2765.8,1.16089332]
[1643799589810,0.54747445,2765.9,2765.8,0.1807]
[1643799590006,0.54747445,2765.9,2765.8,1.16085525]
[1643799590248,0.54747445,2765.9,2765.8,0.1807]
[1643799590949,0.54747445,2765.9,2765.7,1.16129076]
[1643799591150,0.54747445,2765.9,2765.8,0.98059076]
[1643799591351,0.54747445,2765.9,2765.8,0.1807]
[1643799591551,0.54747445,2765.9,2765.8,0.98056816]
[1643799591753,0.54747445,2765.9,2765.8,0.1807]
[1643799591956,0.54747445,2765.9,2765.8,0.98052349]
[1643799592152,0.54747445,2765.9,2765.8,0.1807]
[1643799592351,0.54747445,2765.9,2765.8,0.98052309]
[1643799592553,0.54747445,2765.9,2765.8,1.16122287]
[1643799592758,0.54747445,2765.9,2765.8,0.1807]
[1643799592959,0.54747445,2765.9,2765.8,1.16115274]
[1643799593158,0.54747445,2765.9,2765.8,0.1807]
[1643799593358,0.54747445,2765.9,2765.8,0.05104695]
[1643799593561,0.54747445,2765.9,2765.8,1.16115253]
[1643799602197,0.79401125,2765.9,2765.8,1.16115253]
[1643799607664,1.19956693,2765.9,2765.8,1.16115253]
[1643799608060,0.79401125,2765.9,2765.8,1.16115253]
[1643799609405,0.79401125,2765.9,2765.8,2.15421543]
[1643799610410,1.10990266,2765.9,2765.8,2.15421543]
[1643799612016,0.79401125,2765.9,2765.8,2.15421543]
[1643799613658,0.2465368,2765.9,2765.8,2.15421543]
[1643799613957,0.80715592,2765.9,2765.8,2.15421543]
[1643799614158,0.2465368,2765.9,2765.8,2.15421543]
[1643799614759,0.80713347,2765.9,2765.8,2.15421543]
[1643799614959,0.2465368,2765.9,2765.8,2.15421543]
[1643799615163,0.80703411,2765.9,2765.8,2.15421543]
[1643799615364,0.80302119,2765.9,2765.8,1.97351543]
[1643799615559,0.2465368,2765.9,2765.8,1.97351543]
[1643799615762,0.80328538,2765.9,2765.8,1.97351543]
[1643799616060,0.2465368,2765.9,2765.8,1.97351543]
[1643799616261,0.80291969,2765.9,2765.8,1.97351543]
[1643799616707,1.17596455,2765.9,2765.8,1.97351543]
[1643799617009,1.17596455,2765.9,2765.8,0.9930629]
[1643799617209,1.17596455,2765.9,2765.8,1.96725132]
[1643799617408,1.17596455,2765.9,2765.8,0.9930629]
[1643799617608,1.17596455,2765.9,2765.8,1.9672472]
[1643799617807,3.14226114,2765.9,2765.5,0.00173918]
[1643799618015,3.14226114,2765.9,2765.3,0.97423668]
[1643799618016,3.05309582,2765.8,2765.3,0.97423668]
[1643799618210,2.33934145,2765.9,2765.4,0.00173454]
[1643799618211,3.85046974,2765.7,2765.4,0.00173454]
[1643799618409,0.55638289,2765.6,2765.4,0.00173454]
[1643799618810,1.92325581,2765.5,2765.3,0.97423668]
[1643799619010,0.55638289,2765.4,2765.3,0.97423668]
[1643799619811,1.24881489,2765.4,2765.3,0.97423668]
[1643799625332,0.80291969,2765.4,2765.3,0.97423668]
[1643799625524,0.80291969,2765.4,2765.3,5.65466668]
[1643799625525,0.2465368,2765.4,2765.3,5.65466668]
[1643799625726,0.2465368,2765.4,2765.3,6.04349295]
[1643799627762,0.2465368,2765.4,2765.3,1.15493668]
[1643799627763,0.82377486,2765.4,2765.3,1.15493668]
[1643799627955,0.2465368,2765.4,2765.3,1.15493668]
[1643799628558,0.82392565,2765.4,2765.3,1.15493668]
[1643799628762,1.77051965,2765.4,2765.3,1.15493668]
[1643799630058,1.77051965,2765.4,2765.3,0.97423668]
[1643799631058,0.82392565,2765.4,2765.3,0.97423668]
[1643799638261,0.2465368,2765.4,2765.3,0.97423668]
[1643799638666,0.92088287,2765.5,2765.3,0.96732289]
[1643799638901,0.88696238,2765.5,2765.3,0.96732289]
[1643799644157,0.1807,2765.8,2765.3,0.96732289]
[1643799644357,0.1807,2765.8,2765.3,0.96905743]
[1643799645358,0.39229674,2765.7,2765.3,0.96905743]
[1643799646060,0.39229674,2765.7,2765.3,1.79474692]
[1643799646261,0.39229674,2765.7,2765.3,0.82742403]
[1643799647204,0.39229674,2765.7,2765.3,0.00173454]
[1643799648212,0.9041041,2765.6,2765.3,0.00173454]
[1643799650256,0.9041041,2765.6,2765.2,1.2294]
[1643799650456,0.9041041,2765.6,2765.2,1.23113464]
[1643799651060,0.85711056,2765.3,2765.2,1.23113464]
[1643799654316,0.85711056,2765.3,2765.2,1.2294]
[1643799658559,0.85711056,2765.3,2765.2,2.15811127]
[1643799658560,1.45738932,2765.3,2765.2,2.15811127]
[1643799658759,0.85711056,2765.3,2765.2,2.15811127]
[1643799658959,1.45738231,2765.3,2765.2,2.15811127]
[1643799659161,1.45736356,2765.3,2765.2,2.15811127]
[1643799660160,3.59693835,2765.7,2765.2,2.15811127]
[1643799660362,0.91677112,2765.4,2765.3,0.92871127]
[1643799662212,0.91677112,2765.4,2765.2,0.5013555]
[1643799662512,0.91677112,2765.4,2765.2,0.49962086]
[1643799662718,0.78017812,2765.4,2765.2,0.49962086]
[1643799664319,1.68445812,2765.4,2765.2,0.49962086]
[1643799665158,1.91963943,2765.3,2765.2,0.49962086]
[1643799665559,1.68445812,2765.4,2765.2,0.49962086]
[1643799665761,1.68445812,2765.4,2764.9,0.00173464]
[1643799665959,0.42054963,2765.0,2764.9,0.00173464]
[1643799666158,0.82830814,2764.9,2764.8,0.5724772]
[1643799666560,0.9043,2765.3,2764.8,0.5724772]
[1643799666758,0.9043,2765.3,2764.9,0.00173464]
[1643799666960,0.9042981,2765.1,2764.9,0.00173464]
[1643799667165,0.9042981,2765.1,2764.8,0.5724772]
[1643799667965,0.9042981,2765.1,2764.8,0.3917772]
[1643799669003,1.16649371,2765.0,2764.8,0.3917772]
[1643799669215,2.9044363,2764.9,2764.8,0.3917772]
[1643799669411,2.9044363,2764.9,2764.4,0.00173464]
[1643799669412,1.0851363,2764.9,2764.4,0.00173464]
[1643799669605,1.3851363,2764.9,2764.4,0.00173464]
[1643799669908,0.1807,2764.9,2764.4,0.00173464]
[1643799670103,0.1807,2764.9,2764.2,0.00173464]
[1643799670306,0.1807,2764.9,2764.2,0.18243464]
[1643799670307,0.44502875,2764.3,2764.2,0.18243464]
[1643799670505,0.84979019,2764.4,2764.2,0.18243464]
[1643799670705,0.84979019,2764.4,2764.1,0.1807]
[1643799670905,0.84979019,2764.4,2764.1,0.86925627]
[1643799671104,0.84979019,2764.4,2764.1,0.87099091]
[1643799672668,1.23081989,2764.6,2764.1,0.87099091]
[1643799673163,1.23081989,2764.6,2764.1,0.18243464]
[1643799673563,0.86907066,2764.3,2764.1,0.18243464]
[1643799674366,0.41821849,2764.1,2764.0,0.68855627]
[1643799674566,0.86907066,2764.3,2764.0,0.1807]
[1643799674964,0.86907066,2764.3,2764.0,0.18243464]
[1643799678521,0.86907066,2764.3,2763.6,4.79415668]
[1643799678718,0.34422244,2763.9,2763.5,5.07625627]
[1643799678919,0.34422244,2763.9,2763.6,0.68855627]
[1643799679218,0.34422244,2763.9,2763.5,5.07625627]
[1643799679417,0.82513954,2763.6,2763.5,5.07625627]
[1643799679621,0.82513954,2763.6,2763.5,1.3968]
[1643799679817,0.82513954,2763.6,2763.5,0.1809]
[1643799680262,0.82513954,2763.6,2763.5,1.05591575]
[1643799680463,0.34422244,2763.9,2763.5,1.05591575]
[1643799680659,0.34422244,2763.9,2763.6,0.87501575]
[1643799681058,0.34422244,2763.9,2763.7,0.87501575]
[1643799681264,0.34422244,2763.9,2763.8,0.87501575]
[1643799681658,1.02995166,2763.9,2763.8,0.87501575]
[1643799682262,0.1809,2764.0,2763.8,0.87501575]
[1643799682461,0.1809,2764.0,2763.9,0.87501575]
[1643799683905,0.62216042,2764.0,2763.9,0.87501575]
[1643799684306,0.44126042,2764.0,2763.9,0.87501575]
[1643799685907,0.44126042,2764.0,2763.9,0.77501575]
[1643799690968,2.39961004,2764.0,2763.9,0.77501575]
[1643799691162,2.56433193,2764.0,2763.9,0.77501575]
[1643799691610,2.86433193,2764.0,2763.9,0.77501575]
[1643799692005,2.85566177,2764.0,2763.9,0.77501575]
[1643799692405,0.92216042,2764.0,2763.9,0.77501575]
[1643799692608,1.80955,2763.9,2763.3,0.1809]
[1643799692811,3.28997148,2763.8,2763.3,0.1809]
[1643799693010,1.2047863,2763.8,2763.3,0.1809]
[1643799693210,0.1809,2763.7,2763.2,1.1399]
[1643799693617,1.58766764,2763.6,2763.2,1.1399]
[1643799693813,0.84547139,2763.1,2762.9,3.4883]
[1643799694014,0.84547139,2763.1,2762.9,0.1809]
[1643799694211,0.84547139,2763.1,2762.8,0.87118772]
[1643799694412,0.39621834,2763.0,2762.8,0.87118772]
[1643799694615,0.39621834,2763.0,2762.8,0.18263145]
[1643799694813,0.39621834,2763.0,2762.8,0.1809]
[1643799695016,0.39621834,2763.0,2762.7,0.68855627]
[1643799695277,2.39019892,2763.0,2762.8,0.1809]
[1643799695475,2.39019892,2763.0,2762.7,0.1809]
[1643799695476,2.02985971,2762.9,2762.7,0.1809]
[1643799695675,2.4099798,2763.0,2762.7,0.1809]
[1643799695876,2.4099798,2763.0,2762.6,0.00173145]
[1643799696286,2.4099798,2763.0,2762.3,1.2348]
[1643799696287,2.4,2762.9,2762.3,1.2348]
[1643799696584,2.4,2762.9,2761.8,0.68855627]
[1643799696585,3.25,2762.7,2761.8,0.68855627]
[1643799696783,3.25,2762.7,2761.6,0.68855627]
[1643799696784,2.16556972,2762.6,2761.6,0.68855627]
[1643799696982,0.1809,2762.5,2761.9,0.04206334]
[1643799697183,0.1809,2762.5,2761.5,0.68855627]
[1643799697386,0.1809,2762.5,2761.2,1.1134662]
[1643799697387,0.68497115,2761.6,2761.2,1.1134662]
[1643799697590,0.68497115,2761.6,2760.2,9.21326717]
[1643799697591,2.0,2761.5,2760.2,9.21326717]
[1643799697786,2.1811,2761.5,2760.2,6.9864]
[1643799697981,0.1811,2761.5,2760.2,6.9864]
[1643799698280,0.39133281,2760.5,2760.2,3.0232]
[1643799698483,0.1811,2761.5,2760.2,3.0232]
[1643799698484,0.9056833,2761.4,2760.2,2.1176]
[1643799698682,0.1811,2761.3,2760.1,1.127]
[1643799699311,0.1811,2761.3,2760.2,2.0]
[1643799699512,0.76973243,2760.6,2760.2,2.0]
[1643799699914,0.76973243,2760.6,2760.0,1.93074581]
[1643799700513,0.1811,2761.3,2760.1,0.18111]
[1643799700717,0.1811,2761.3,2760.0,2.93074581]
[1643799700915,0.1811,2761.3,2760.1,0.18115]
[1643799701114,0.1811,2761.3,2760.1,1.18115]
[1643799701315,0.1811,2761.3,2760.2,2.31211041]
[1643799701523,0.69784451,2760.7,2760.2,2.31211041]
[1643799701715,0.69784451,2760.7,2760.2,3.31211041]
[1643799701917,0.69784451,2760.7,2760.3,0.18115]
[1643799702518,0.4811,2761.4,2760.3,0.18115]
[1643799702765,0.36183809,2761.1,2760.3,0.18115]
[1643799703467,0.92797853,2761.1,2760.4,0.72962233]
[1643799703667,0.1811,2761.4,2760.5,2.15339966]
[1643799703865,0.27639994,2761.6,2760.5,2.15339966]
[1643799703866,0.1809,2761.5,2760.5,3.64658485]
[1643799704072,0.27639994,2761.6,2760.6,0.523]
[1643799704267,0.1809,2762.0,2760.7,2.43904473]
[1643799704665,0.51684701,2762.0,2760.7,3.43904473]
[1643799704868,0.85393885,2761.4,2760.7,2.43904473]
[1643799710463,0.1809,2761.5,2760.7,0.18115]
[1643799710661,0.1809,2761.9,2760.7,0.18115]
[1643799710863,0.1809,2761.9,2760.5,7.03372006]
[1643799711258,2.78518792,2762.1,2760.5,7.03372006]
[1643799711259,0.1809,2762.0,2760.5,7.03372006]
[1643799711773,0.1809,2762.0,2760.5,5.50994511]
[1643799711774,0.90123928,2761.4,2760.5,5.50994511]
[1643799711965,0.90123928,2761.4,2760.5,1.64234511]
[1643799712169,0.90123928,2761.4,2760.6,0.0017091]
[1643799713369,0.1809,2761.5,2760.6,0.0017091]
[1643799713570,0.1809,2761.7,2760.6,1.87589403]
[1643799713768,0.73819997,2762.1,2760.7,0.0017091]
[1643799713769,0.1809,2762.0,2760.7,0.0017091]
[1643799714422,0.85450237,2761.6,2760.9,0.77868953]
[1643799714613,0.85450237,2761.6,2761.0,0.0017091]
[1643799714814,1.03540237,2761.6,2761.0,0.0017091]
[1643799715217,1.03540237,2761.6,2760.9,0.77538143]
[1643799715218,0.85450237,2761.6,2760.9,0.77538143]
[1643799715418,0.85450237,2761.6,2761.0,1.94608223]
[1643799716422,0.85450237,2761.6,2761.0,1.8770184]
[1643799717034,0.85450237,2761.6,2760.9,0.77538143]
[1643799717234,0.85450237,2761.6,2761.0,1.84146341]
[1643799718258,0.85450237,2761.6,2760.9,0.77538143]
[1643799718462,0.85450237,2761.6,2761.0,1.85053843]
[1643799719259,0.85450237,2761.6,2761.0,2.26075472]
[1643799719863,0.1809,2762.0,2761.0,1.85053843]
[1643799720068,0.1809,2762.0,2761.0,2.15053843]
[1643799720265,0.1809,2762.0,2761.1,0.18115]
[1643799720666,0.1809,2762.0,2761.1,0.19352183]
[1643799720864,0.54976157,2762.0,2761.1,0.19352183]
[1643799721065,0.80577234,2761.8,2761.1,0.19352183]
[1643799722627,0.181,2761.7,2761.1,0.19352183]
[1643799724834,0.41452942,2761.7,2761.1,0.19352183]
[1643799725270,0.41452942,2761.7,2761.1,0.01237183]
[1643799725776,1.00649942,2761.7,2760.5,0.1809]
[1643799726173,0.89542942,2761.7,2760.5,0.1809]
[1643799726671,0.4809,2761.7,2760.5,0.1809]
[1643799726873,0.1809,2761.7,2760.5,0.1809]
[1643799727276,0.11107,2761.9,2760.5,0.1809]
[1643799727277,0.4809,2761.8,2760.5,0.1809]
[1643799727481,0.1809,2761.8,2760.5,1.1809]
[1643799727673,0.1809,2762.0,2760.6,2.0]
[1643799727873,0.1809,2762.0,2760.9,0.88900909]
[1643799727874,0.44354575,2761.4,2760.9,0.88900909]
[1643799728073,0.1809,2761.5,2760.9,0.88900909]
[1643799728273,0.43819997,2762.1,2760.9,0.88900909]
[1643799728274,0.1809,2762.0,2761.0,1.92355605]
[1643799729114,0.34556585,2761.6,2761.0,1.92355605]
[1643799729315,0.34556585,2761.6,2760.9,1.06990909]
[1643799730120,0.34556585,2761.6,2760.9,2.92363545]
[1643799730313,0.34556585,2761.6,2761.0,1.85044642]
[1643799730910,0.1809,2761.7,2761.0,1.85044642]
[1643799731112,0.1809,2761.7,2761.1,0.00170889]
[1643799731516,0.1809,2762.0,2761.1,0.00170889]
[1643799732119,0.36133939,2761.6,2761.1,0.00170889]
[1643799732420,0.1809,2762.0,2761.1,0.00170889]
[1643799732421,0.1809,2762.0,2761.1,0.73937724]
[1643799732672,0.13819997,2762.4,2761.2,2.00170889]
[1643799732673,0.1809,2762.3,2761.2,2.00170889]
[1643799732870,0.1809,2762.3,2761.3,0.91881835]
[1643799733071,0.1809,2762.3,2761.2,2.00170889]
[1643799733272,0.1809,2762.3,2761.4,0.00170889]
[1643799734071,0.7195001,2762.0,2761.4,0.00170889]
[1643799734674,0.39240171,2761.7,2761.4,0.00170889]
[1643799736172,0.7195001,2762.0,2761.3,0.74079004]
[1643799736438,0.1809,2762.3,2761.3,0.74079004]
[1643799736739,0.77721225,2762.2,2761.4,0.74079004]
[1643799736935,0.1809,2762.1,2761.5,0.74249893]
[1643799737140,0.77721225,2762.0,2761.6,0.74079004]
[1643799737341,1.19118741,2762.0,2761.5,0.00170889]
[1643799737540,0.41397516,2762.0,2761.3,0.92299538]
[1643799737741,0.77877913,2761.9,2761.5,0.72842004]
[1643799737946,0.77877913,2761.9,2761.6,0.74209538]
[1643799738345,0.77877913,2761.9,2761.5,0.00170889]
[1643799738542,0.1809,2761.8,2761.5,0.00170889]
[1643799738744,0.77877913,2761.7,2761.1,2.6209372]
[1643799738942,0.77877913,2761.7,2761.2,0.74353608]
[1643799739143,0.1809,2761.9,2761.2,0.74353608]
[1643799739343,0.77871256,2761.8,2761.3,0.74353608]
[1643799739542,0.77871256,2761.8,2761.4,1.44867302]
[1643799739744,0.77871256,2761.8,2761.5,0.74353608]
[1643799741478,0.77871256,2761.8,2761.6,0.74353608]
[1643799741676,0.77871256,2761.8,2761.2,0.74353608]
[1643799741877,0.77871256,2761.8,2761.3,0.74353608]
[1643799742076,0.77871256,2761.8,2761.4,0.74353608]
[1643799742277,0.77871256,2761.8,2761.5,0.74353608]
[1643799742477,0.77871256,2761.8,2761.6,0.74353608]
[1643799742678,0.77871256,2761.8,2761.7,0.74353608]
[1643799742877,0.77871256,2761.8,2761.4,0.74114578]
[1643799743081,0.77871256,2761.8,2761.5,0.74114843]
[1643799743276,0.77871256,2761.8,2761.2,0.74114843]
[1643799743477,0.77871256,2761.8,2761.3,0.74114843]
[1643799743778,0.77871256,2761.8,2761.4,0.74114843]
[1643799744013,0.77871256,2761.8,2761.5,0.74114843]
[1643799744215,0.77871256,2761.8,2761.6,0.74114843]
[1643799744412,0.77871256,2761.8,2761.7,0.70219028]
[1643799744611,0.77871256,2761.8,2761.2,0.70218889]
[1643799747665,0.77871256,2761.8,2761.3,4.1956535]
[1643799747867,0.77871256,2761.8,2761.4,0.70218889]
[1643799748172,0.77871256,2761.8,2761.1,0.68625264]
[1643799748173,0.77871256,2761.7,2761.5,0.70218889]
[1643799748371,0.77871256,2761.6,2761.1,0.68625264]
[1643799748567,0.1809,2762.1,2761.2,0.70259773]
[1643799748767,1.18040333,2762.0,2761.2,0.70259773]
[1643799748967,1.00790989,2761.9,2761.2,0.70259773]
[1643799749167,0.82700989,2761.8,2761.2,0.70259773]
[1643799754214,0.82700989,2761.8,2761.3,0.00170781]
[1643799756968,0.82700989,2761.7,2761.3,0.00170781]
[1643799757168,0.82700989,2761.6,2761.3,0.00170781]
[1643799757369,0.82700989,2761.5,2761.3,0.00170781]
[1643799757567,0.86795535,2762.0,2761.2,0.70259773]
[1643799757771,0.84560183,2761.9,2761.2,0.70259773]
[1643799757970,1.23575655,2761.9,2761.2,0.70259773]
[1643799758170,0.84560183,2761.8,2761.3,0.00170781]
[1643799758771,1.9228119,2761.9,2761.3,0.00170781]
[1643799759020,0.84560183,2761.8,2761.3,0.00170781]
[1643799759823,1.53265718,2761.8,2761.3,0.00170781]
[1643799760825,0.84560183,2761.8,2761.3,0.00170781]
[1643799761028,0.84560183,2761.7,2761.3,0.00170781]
[1643799761223,0.84560183,2761.6,2761.3,0.00170781]
[1643799761425,0.84560183,2761.5,2761.3,0.70430554]
[1643799761624,0.84560183,2761.5,2761.1,0.00170781]